fUSD/lending_fUSD_20240719
["ID","MTS","AMOUNT","RATE_DAILY","PERIOD"]
[332651495,1721405474428,-2948.42,0.00033698,14]
[332651496,1721405474438,-500.0,0.00033698,14]
[332651497,1721405474449,-784.93,0.00033698,14]
[332651498,1721405474459,-500.0,0.00033698,14]
[332651499,1721405474470,-500.0,0.00033698,14]
[332651500,1721405474480,-640.01,0.00033698,14]
[332651501,1721405474490,-513.52,0.00033698,14]
[332651502,1721405474500,-500.0,0.00033698,14]
[332651503,1721405474510,-1028.44,0.00033698,14]
[332651504,1721405474520,-2252.48,0.00033698,14]
[332651505,1721405474531,-500.0,0.00033698,14]
[332651506,1721405474541,-3712.8,0.00033698,14]
[332651507,1721405474551,-2021.9,0.00033698,14]
[332651508,1721405474562,-1403.26,0.00033698,14]
[332651509,1721405474572,-500.0,0.00033698,14]
[332651510,1721405474582,-674.78,0.00033698,14]
[332651511,1721405474593,-937.06,0.00033698,14]
[332651512,1721405474603,-2643.01,0.00033698,14]
[332651513,1721405474613,-1627.03,0.00033698,14]
[332651514,1721405474623,-2462.55,0.00033698,14]
[332651515,1721405474636,-500.0,0.00033698,14]
[332651516,1721405474646,-511.9416136,0.00033698,14]
[332651517,1721405474656,-500.0,0.00033698,14]
[332651518,1721405474666,-3287.52,0.00033698,14]
[332651519,1721405474676,-500.0,0.00033698,14]
[332651520,1721405474687,-500.0,0.00033698,14]
[332651521,1721405474698,-1936.03,0.00033698,14]
[332651522,1721405474709,-500.0,0.00033698,14]
[332651523,1721405474719,-2333.6,0.00033698,14]
[332651524,1721405474730,-1393.59,0.00033698,14]
[332651525,1721405474740,-500.0,0.00033698,14]
[332651526,1721405474750,-1525.3,0.00033698,14]
[332651527,1721405474760,-500.0,0.00033698,14]
[332651528,1721405474771,-500.0,0.00033698,14]
[332651529,1721405474781,-500.0,0.00033698,14]
[332651530,1721405474792,-500.0,0.00033698,14]
[332651531,1721405474802,-500.0,0.00033698,14]
[332651532,1721405474812,-573.94,0.00033698,14]
[332651533,1721405474823,-500.0,0.00033698,14]
[332651534,1721405474833,-1371.28,0.00033698,14]
[332651535,1721405474844,-3469.57,0.00033698,14]
[332651536,1721405474854,-631.52,0.00033698,14]
[332651537,1721405474864,-588.43,0.00033698,14]
[332651538,1721405474875,-506.6965554,0.00033698,14]
[332651539,1721405474886,-2176.17,0.00033698,14]
[332651540,1721405474896,-1955.31,0.00033698,14]
[332651541,1721405474906,-500.0,0.00033698,14]
[332651542,1721405474917,-500.0,0.00033698,14]
[332651543,1721405474928,-2427.02,0.00033698,14]
[332651544,1721405474938,-500.0,0.00033698,14]
[332651545,1721405474949,-500.0,0.00033698,14]
[332651547,1721405475833,-500.0,0.00033698,14]
[332651548,1721405475866,-1828.59,0.00033698,14]
[332651549,1721405475876,-5486.25,0.00033698,14]
[332651550,1721405475888,-1223.8,0.00033698,14]
[332651551,1721405475898,-500.0,0.00033698,14]
[332651552,1721405475907,-2146.48,0.00033698,14]
[332651553,1721405475917,-3526.03,0.00033698,14]
[332651554,1721405475926,-500.0,0.00033698,14]
[332651555,1721405475936,-4860.92,0.00033698,14]
[332651556,1721405475946,-764.16,0.00033698,14]
[332651557,1721405475955,-500.0,0.00033698,14]
[332651558,1721405475964,-508.79142992,0.00033698,14]
[332651559,1721405475973,-911.04,0.00033698,14]
[332651560,1721405475982,-500.0,0.00033698,14]
[332651561,1721405475992,-500.0,0.00033698,14]
[332651562,1721405476001,-1186.38,0.00033698,14]
[332651563,1721405476010,-803.43,0.00033698,14]
[332651564,1721405476020,-1434.17,0.00033698,14]
[332651565,1721405476029,-2377.08,0.00033698,14]
[332651566,1721405476038,-1324.17,0.00033698,14]
[332651567,1721405476049,-579.72,0.00033698,14]
[332651568,1721405476058,-1063.45,0.00033698,14]
[332651569,1721405476067,-997.28,0.00033698,14]
[332651570,1721405476077,-500.0,0.00033698,14]
[332651571,1721405476086,-1722.45,0.00033698,14]
[332651572,1721405476096,-500.0,0.00033698,14]
[332651573,1721405476105,-1747.58,0.00033698,14]
[332651574,1721405476114,-691.87,0.00033698,14]
[332651575,1721405476123,-764.08,0.00033698,14]
[332651576,1721405476135,-2778.31,0.00033698,14]
[332651577,1721405476144,-731.94,0.00033698,14]
[332651578,1721405476154,-746.56,0.00033698,14]
[332651579,1721405476163,-2370.14,0.00033698,14]
[332651580,1721405476176,-2176.52,0.00033698,14]
[332651581,1721405476185,-500.0,0.00033698,14]
[332651582,1721405476195,-946.47,0.00033698,14]
[332651583,1721405476205,-843.15,0.00033698,14]
[332651584,1721405476214,-2612.42,0.00033698,14]
[332651585,1721405476225,-3433.1,0.00033698,14]
[332651586,1721405476234,-3257.38,0.00033698,14]
[332651587,1721405476249,-4807.83,0.00033698,14]
[332651588,1721405476261,-338.06187561,0.00033698,14]
[332651589,1721405476270,-776.7,0.00033698,14]
[332651590,1721405476280,-500.0,0.00033698,14]
[332651591,1721405476290,-6084.24,0.00033698,14]
[332651592,1721405476300,-3104.0,0.00033698,14]
[332651593,1721405476309,-500.0,0.00033698,14]
[332651594,1721405476319,-1119.11,0.00033698,14]
[332651595,1721405476330,-929.51,0.00033698,14]
[332651596,1721405476339,-591.57,0.00033698,14]
[332651597,1721405476349,-773.81,0.00033698,14]
[332651598,1721405476359,-886.94,0.00033698,14]
[332651599,1721405476368,-500.0,0.00033698,14]
[332651600,1721405476379,-834.14,0.00033698,14]
[332651601,1721405476391,-520.14,0.00033698,14]
[332651602,1721405476400,-12975.5,0.00033698,14]
[332651603,1721405476410,-3729.59,0.00033698,14]
[332651604,1721405476420,-500.0,0.00033698,14]
[332651605,1721405476430,-564.41,0.00033698,14]
[332651606,1721405476439,-500.0,0.00033698,14]
[332651607,1721405476449,-2202.35,0.00033698,14]
[332651608,1721405476458,-500.0,0.00033698,14]
[332651609,1721405476468,-4444.81,0.00033698,14]
[332651610,1721405476478,-500.0,0.00033698,14]
[332651611,1721405476487,-517.39,0.00033698,14]
[332651612,1721405476497,-6544.05,0.00033698,14]
[332651613,1721405476506,-1479.28,0.00033698,14]
[332651614,1721405476515,-500.0,0.00033698,14]
[332651615,1721405476525,-500.0,0.00033698,14]
[332651616,1721405476535,-7598.05,0.00033698,14]
[332651617,1721405476544,-500.0,0.00033698,14]
[332651618,1721405476553,-1223.02,0.00033698,14]
[332651619,1721405476564,-2618.85,0.00033698,14]
[332651620,1721405476574,-500.0,0.00033698,14]
[332651621,1721405476583,-514.29594505,0.00033698,14]
[332651622,1721405476593,-500.0,0.00033698,14]
[332651623,1721405476602,-500.0,0.00033698,14]
[332651624,1721405476612,-5744.48,0.00033698,14]
[332651625,1721405476622,-1017.25,0.00033698,14]
[332651626,1721405476632,-597.01,0.00033698,14]
[332651627,1721405476644,-1155.3,0.00033698,14]
[332651628,1721405476654,-4429.22,0.00033698,14]
[332651629,1721405476664,-783.69,0.00033698,14]
[332651630,1721405476674,-590.27,0.00033698,14]
[332651631,1721405476684,-500.0,0.00033698,14]
[332651632,1721405476695,-3470.76,0.00033698,14]
[332651633,1721405476705,-500.0,0.00033698,14]
[332651634,1721405476715,-2242.37,0.00033698,14]
[332651635,1721405476725,-501.12,0.00033698,14]
[332651636,1721405476735,-500.0,0.00033698,14]
[332651637,1721405476744,-2671.8,0.00033698,14]
[332651638,1721405476754,-506.20476347,0.00033698,14]
[332651639,1721405476763,-1458.44,0.00033698,14]
[332651640,1721405476773,-850.9,0.00033698,14]
[332651641,1721405476783,-3379.93,0.00033698,14]
[332651642,1721405476793,-782.77,0.00033698,14]
[332651643,1721405476802,-983.6,0.00033698,14]
[332651644,1721405476812,-2276.75,0.00033698,14]
[332651645,1721405476822,-2517.04,0.00033698,14]
[332651646,1721405476831,-7579.61,0.00033698,14]
[332651647,1721405476841,-1306.08,0.00033698,14]
[332651648,1721405476851,-528.52,0.00033698,14]
[332651649,1721405476860,-500.0,0.00033698,14]
[332651650,1721405476870,-612.81,0.00033698,14]
[332651651,1721405476879,-2573.03,0.00033698,14]
[332651652,1721405476892,-500.0,0.00033698,14]
[332651653,1721405476901,-1623.35,0.00033698,14]
[332651654,1721405476911,-662.31,0.00033698,14]
[332651655,1721405476921,-944.06,0.00033698,14]
[332651656,1721405476931,-4158.79,0.00033698,14]
[332651657,1721405476940,-500.0,0.00033698,14]
[332651658,1721405476950,-500.0,0.00033698,14]
[332651659,1721405476960,-823.61,0.00033698,14]
[332651660,1721405476970,-2052.86,0.00033698,14]
[332651661,1721405476979,-4173.55,0.00033698,14]
[332651662,1721405476988,-500.0,0.00033698,14]
[332651663,1721405476998,-3312.59,0.00033698,14]
[332651664,1721405477009,-2591.99,0.00033698,14]
[332651665,1721405477019,-500.0,0.00033698,14]
[332651666,1721405477029,-1670.33,0.00033698,14]
[332651667,1721405477039,-1110.3,0.00033698,14]
[332651668,1721405477048,-3295.96,0.00033698,14]
[332651669,1721405477058,-3203.29,0.00033698,14]
[332651670,1721405477071,-12713.43,0.00033698,14]
[332651671,1721405477080,-500.0,0.00033698,14]
[332651672,1721405477089,-9922.87,0.00033698,14]
[332651673,1721405477098,-12334.5,0.00033698,14]
[332651674,1721405477108,-1634.46,0.00033698,14]
[332651675,1721405477119,-2349.36,0.00033698,14]
[332651676,1721405477129,-502.10084528,0.00033698,14]
[332651677,1721405477141,-1715.39,0.00033698,14]
[332651678,1721405477151,-2218.75,0.00033698,14]
[332651679,1721405477161,-1842.31,0.00033698,14]
[332651680,1721405477170,-579.83,0.00033698,14]
[332651681,1721405477181,-28938.05,0.00033698,14]
[332651682,1721405477191,-2574.56,0.00033698,14]
[332651683,1721405477200,-500.0,0.00033698,14]
[332651684,1721405477210,-6670.15,0.00033698,14]
[332651685,1721405477219,-9010.61,0.00033698,14]
[332651686,1721405477229,-951.45,0.00033698,14]
[332651687,1721405477239,-1645.9,0.00033698,14]
[332651688,1721405477249,-1951.67,0.00033698,14]
[332651689,1721405477261,-500.0,0.00033698,14]
[332651690,1721405477271,-1689.61,0.00033698,14]
[332651691,1721405477281,-714.02,0.00033698,14]
[332651692,1721405477291,-7708.62,0.00033698,14]
[332651693,1721405477301,-5729.14,0.00033698,14]
[332651694,1721405477311,-1322.64,0.00033698,14]
[332651695,1721405477321,-1063.5,0.00033698,14]
[332651696,1721405477331,-1362.93,0.00033698,14]
[332651697,1721405477342,-12312.14,0.00033698,14]
[332651698,1721405477351,-1299.48,0.00033698,14]
[332651699,1721405477361,-924.96,0.00033698,14]
[332651700,1721405477371,-1762.71,0.00033698,14]
[332651701,1721405477381,-7146.83,0.00033698,14]
[332651702,1721405477392,-500.0,0.00033698,14]
[332651703,1721405477402,-2889.83,0.00033698,14]
[332651704,1721405477412,-977.45,0.00033698,14]
[332651705,1721405477422,-500.0,0.00033698,14]
[332651706,1721405477432,-579.71,0.00033698,14]
[332651707,1721405477442,-505.72575161,0.00033698,2]
[332651708,1721405477451,-4396.85,0.00033698,14]
[332651709,1721405477460,-7179.59,0.00033698,14]
[332651710,1721405477470,-502.88,0.00033698,14]
[332651711,1721405477480,-19689.3,0.00033698,14]
[332651712,1721405477489,-500.0,0.00033698,14]
[332651713,1721405477499,-1149.54,0.00033698,14]
[332651714,1721405477508,-3000.95,0.00033698,14]
[332651715,1721405477518,-12544.8,0.00033698,14]
[332651716,1721405477528,-3150.65,0.00033698,14]
[332651717,1721405477538,-1659.47,0.00033698,14]
[332651718,1721405477548,-2369.19,0.00033698,14]
[332651719,1721405477558,-500.0,0.00033698,14]
[332651720,1721405477569,-871.86,0.00033698,14]
[332651721,1721405477578,-1257.98,0.00033698,14]
[332651722,1721405477588,-500.0,0.00033698,14]
[332651723,1721405477598,-500.0,0.00033698,14]
[332651724,1721405477608,-33865.98,0.00033698,14]
[332651725,1721405477617,-2554.25,0.00033698,14]
[332651726,1721405477627,-585.26,0.00033698,14]
[332651727,1721405477638,-286.70648964,0.00033698,14]
[332651728,1721405477648,-16039.8,0.00033698,14]
[332651729,1721405477658,-684.81,0.00033698,14]
[332651730,1721405477668,-5448.92,0.00033698,14]
[332651731,1721405477678,-500.0,0.00033698,14]
[332651732,1721405477687,-7767.51,0.00033698,14]
[332651733,1721405477697,-1115.03,0.00033698,14]
[332651734,1721405477707,-4546.82,0.00033698,14]
[332651735,1721405477717,-500.0,0.00033698,14]
[332651736,1721405477727,-2290.4,0.00033698,14]
[332651737,1721405477736,-15549.95,0.00033698,14]
[332651738,1721405477746,-500.0,0.00033698,14]
[332651739,1721405477755,-1610.24,0.00033698,14]
[332651740,1721405477765,-713.98,0.00033698,14]
[332651741,1721405477774,-846.65,0.00033698,14]
[332651742,1721405477783,-500.0,0.00033698,14]
[332651743,1721405477794,-2566.11,0.00033698,14]
[332651744,1721405477803,-7374.06,0.00033698,14]
[332651745,1721405477814,-748.23,0.00033698,14]
[332651746,1721405477824,-12833.28,0.00033698,14]
[332651747,1721405477834,-2320.73,0.00033698,14]
[332651748,1721405477843,-504.43,0.00033698,14]
[332651749,1721405477853,-17988.02,0.00033698,14]
[332651750,1721405477862,-1344.07,0.00033698,14]
[332651751,1721405477872,-6295.21,0.00033698,14]
[332651752,1721405477881,-500.0,0.00033698,14]
[332651753,1721405477893,-13689.07,0.00033698,14]
[332651754,1721405477903,-4970.78,0.00033698,14]
[332651755,1721405477913,-2116.95,0.00033698,14]
[332651756,1721405477922,-2624.95,0.00033698,14]
[332651757,1721405477932,-500.0,0.00033698,14]
[332651758,1721405477942,-2812.54,0.00033698,14]
[332651759,1721405477951,-959.15,0.00033698,14]
[332651760,1721405477960,-500.0,0.00033698,14]
[332651761,1721405477969,-3410.57,0.00033698,14]
[332651762,1721405477979,-1958.01,0.00033698,14]
[332651763,1721405477988,-543.11,0.00033698,14]
[332651764,1721405477998,-7256.02,0.00033698,14]
[332651765,1721405478007,-1843.94,0.00033698,14]
[332651766,1721405478016,-518.99,0.00033698,14]
[332651767,1721405478027,-9013.11,0.00033698,14]
[332651768,1721405478037,-500.0,0.00033698,14]
[332651769,1721405478047,-500.0,0.00033698,14]
[332651770,1721405478057,-2927.81,0.00033698,14]
[332651771,1721405478067,-7140.38,0.00033698,14]
[332651772,1721405478076,-3548.25,0.00033698,14]
[332651773,1721405478085,-3936.33,0.00033698,14]
[332651774,1721405478095,-7123.89,0.00033698,14]
[332651775,1721405478104,-500.0,0.00033698,14]
[332651776,1721405478115,-2418.71,0.00033698,14]
[332651777,1721405478126,-500.0,0.00033698,14]
[332651778,1721405478136,-5061.23,0.00033698,14]
[332651779,1721405478146,-720.78,0.00033698,14]
[332651780,1721405478156,-1099.27,0.00033698,14]
[332651781,1721405478236,-7161.68,0.00033698,14]
[332651782,1721405478247,-4343.92,0.00033698,14]
[332651783,1721405478259,-500.0,0.00033698,14]
[332651784,1721405478269,-1065.22,0.00033698,14]
[332651785,1721405478279,-5135.62,0.00033698,14]
[332651786,1721405478289,-16158.34,0.00033698,14]
[332651787,1721405478298,-500.0,0.00033698,14]
[332651788,1721405478308,-2158.0,0.00033698,14]
[332651789,1721405478317,-500.0,0.00033698,14]
[332651790,1721405478329,-845.57,0.00033698,14]
[332651791,1721405478339,-5083.59,0.00033698,14]
[332651792,1721405478348,-921.29,0.00033698,14]
[332651793,1721405478358,-9737.63,0.00033698,14]
[332651794,1721405478367,-500.0,0.00033698,14]
[332651795,1721405478377,-500.0,0.00033698,14]
[332651796,1721405478389,-2072.08,0.00033698,14]
[332651797,1721405478398,-1561.89,0.00033698,14]
[332651798,1721405478407,-500.0,0.00033698,14]
[332651799,1721405478417,-4838.92,0.00033698,14]
[332651800,1721405478426,-6611.96,0.00033698,14]
[332651801,1721405478435,-500.0,0.00033698,2]
[332651802,1721405478444,-500.0,0.00033698,14]
[332651803,1721405478454,-719.18,0.00033698,14]
[332651804,1721405478463,-500.0,0.00033698,14]
[332651805,1721405478473,-382.65247476,0.00033698,14]
[332651806,1721405478482,-500.0,0.00033698,14]
[332651807,1721405478492,-500.0,0.00033698,14]
[332651808,1721405478501,-8105.6,0.00033698,14]
[332651809,1721405478510,-4351.25,0.00033698,14]
[332651810,1721405478519,-673.49,0.00033698,14]
[332651811,1721405478529,-1381.41,0.00033698,14]
[332651812,1721405478539,-1724.11,0.00033698,14]
[332651813,1721405478548,-2493.32,0.00033698,14]
[332651814,1721405478557,-4816.46,0.00033698,14]
[332651815,1721405478566,-809.11,0.00033698,14]
[332651816,1721405478575,-3427.99,0.00033698,14]
[332651817,1721405478585,-500.0,0.00033698,14]
[332651818,1721405478595,-14395.48,0.00033698,14]
[332651819,1721405478604,-4458.07,0.00033698,14]
[332651820,1721405478613,-1021.19,0.00033698,14]
[332651821,1721405478625,-2412.68,0.00033698,14]
[332651822,1721405478634,-500.0,0.00033698,14]
[332651823,1721405478647,-612.06,0.00033698,14]
[332651824,1721405478656,-711.73,0.00033698,14]
[332651825,1721405478666,-986.06,0.00033698,14]
[332651826,1721405478675,-5078.8,0.00033698,14]
[332651827,1721405478685,-7014.28,0.00033698,14]
[332651828,1721405478695,-1084.8,0.00033698,14]
[332651829,1721405478706,-579.04,0.00033698,14]
[332651830,1721405478715,-3268.33,0.00033698,14]
[332651831,1721405478725,-9000.65,0.00033698,14]
[332651832,1721405478735,-4940.01,0.00033698,14]
[332651833,1721405478744,-4849.94,0.00033698,14]
[332651834,1721405478754,-9236.16,0.00033698,14]
[332651835,1721405478763,-1329.79,0.00033698,14]
[332651836,1721405478773,-500.0,0.00033698,14]
[332651837,1721405478782,-1759.67,0.00033698,14]
[332651838,1721405478792,-500.0,0.00033698,14]
[332651839,1721405478801,-8561.66,0.00033698,14]
[332651840,1721405478810,-500.0,0.00033698,14]
[332651841,1721405478820,-500.0,0.00033698,14]
[332651842,1721405478830,-500.0,0.00033698,14]
[332651843,1721405478840,-500.0,0.00033698,14]
[332651844,1721405478850,-7088.72,0.00033698,14]
[332651845,1721405478860,-9053.07,0.00033698,14]
[332651846,1721405478870,-7365.65,0.00033698,14]
[332651847,1721405478880,-1387.6,0.00033698,14]
[332651848,1721405478892,-3770.05,0.00033698,14]
[332651849,1721405478902,-1804.67,0.00033698,14]
[332651850,1721405478912,-687.74,0.00033698,14]
[332651851,1721405478922,-1637.67,0.00033698,14]
[332651852,1721405478932,-500.0,0.00033698,14]
[332651853,1721405478941,-500.0,0.00033698,14]
[332651854,1721405478952,-500.0,0.00033698,14]
[332651855,1721405478961,-500.0,0.00033698,14]
[332651856,1721405478971,-500.0,0.00033698,14]
[332651857,1721405478981,-6733.43,0.00033698,14]
[332651858,1721405478990,-503.42683095,0.00033698,14]
[332651859,1721405479000,-1179.7,0.00033698,14]
[332651860,1721405479010,-7685.85,0.00033698,14]
[332651861,1721405479019,-278.90777891,0.00033698,14]
[332651862,1721405479028,-1025.91,0.00033698,14]
[332651863,1721405479038,-2940.65,0.00033698,14]
[332651864,1721405479047,-673.81,0.00033698,14]
[332651865,1721405479057,-5069.82,0.00033698,14]
[332651866,1721405479067,-3890.22,0.00033698,14]
[332651867,1721405479077,-594.53,0.00033698,14]
[332651868,1721405479087,-3237.13,0.00033698,14]
[332651869,1721405479097,-1055.49,0.00033698,14]
[332651870,1721405479106,-500.0,0.00033698,14]
[332651871,1721405479115,-308.35240883,0.00033698,14]
[332651872,1721405479125,-500.0,0.00033698,14]
[332651873,1721405479134,-2282.97,0.00033698,14]
[332651874,1721405479147,-2071.37,0.00033698,2]
[332651875,1721405479156,-5864.93,0.00033698,14]
[332651876,1721405479165,-500.0,0.00033698,14]
[332651877,1721405479177,-2285.44,0.00033698,14]
[332651878,1721405479187,-1204.2,0.00033698,14]
[332651879,1721405479196,-500.0,0.00033698,14]
[332651880,1721405479206,-6802.64,0.00033698,14]
[332651881,1721405479216,-1957.81,0.00033698,14]
[332651882,1721405479226,-500.0,0.00033698,14]
[332651883,1721405479236,-810.81,0.00033698,14]
[332651884,1721405479248,-1244.68,0.00033698,14]
[332651885,1721405479264,-844.39,0.00033698,14]
[332651886,1721405479274,-500.0,0.00033698,14]
[332651887,1721405479283,-500.0,0.00033698,14]
[332651888,1721405479294,-3588.33,0.00033698,14]
[332651889,1721405479303,-854.9,0.00033698,14]
[332651890,1721405479313,-1951.81,0.00033698,14]
[332651891,1721405479322,-3906.45,0.00033698,14]
[332651892,1721405479332,-865.64,0.00033698,14]
[332651893,1721405479342,-3507.5,0.00033698,14]
[332651894,1721405479351,-2603.35,0.00033698,14]
[332651895,1721405479361,-1805.65,0.00033698,14]
[332651896,1721405479370,-1159.4,0.00033698,14]
[332651897,1721405479379,-500.0,0.00033698,14]
[332651898,1721405479391,-6200.88,0.00033698,14]
[332651899,1721405479400,-500.0,0.00033698,14]
[332651900,1721405479409,-500.0,0.00033698,14]
[332651901,1721405479418,-896.2,0.00033698,14]
[332651902,1721405479428,-2326.61,0.00033698,14]
[332651903,1721405479438,-5674.73,0.00033698,14]
[332651904,1721405479447,-1819.85,0.00033698,14]
[332651905,1721405479456,-500.0,0.00033698,14]
[332651906,1721405479466,-15551.55,0.00033698,14]
[332651907,1721405479475,-2542.41,0.00033698,14]
[332651908,1721405479484,-1130.18,0.00033698,14]
[332651909,1721405479494,-500.0,0.00033698,14]
[332651910,1721405479503,-500.0,0.00033698,14]
[332651911,1721405479512,-3436.5,0.00033698,14]
[332651912,1721405479522,-12275.18,0.00033698,14]
[332651913,1721405479532,-500.0,0.00033698,14]
[332651914,1721405479541,-500.0,0.00033698,14]
[332651915,1721405479550,-540.53,0.00033698,14]
[332651916,1721405479560,-7174.87,0.00033698,14]
[332651917,1721405479570,-1873.05,0.00033698,14]
[332651918,1721405479579,-609.14,0.00033698,14]
[332651919,1721405479588,-3712.54,0.00033698,14]
[332651920,1721405479597,-20243.8,0.00033698,14]
[332651921,1721405479607,-1743.57,0.00033698,14]
[332651922,1721405479616,-3792.36,0.00033698,14]
[332651923,1721405479626,-5828.93,0.00033698,14]
[332651924,1721405479635,-794.64,0.00033698,14]
[332651925,1721405479646,-522.89,0.00033698,14]
[332651926,1721405479656,-500.0,0.00033698,14]
[332651927,1721405479665,-5889.56,0.00033698,14]
[332651928,1721405479674,-500.0,0.00033698,14]
[332651929,1721405479684,-525.83,0.00033698,14]
[332651930,1721405479694,-500.0,0.00033698,14]
[332651931,1721405479703,-10947.61,0.00033698,14]
[332651932,1721405479712,-5912.02,0.00033698,14]
[332651933,1721405479722,-11019.54,0.00033698,14]
[332651934,1721405479731,-500.0,0.00033698,14]
[332651935,1721405479740,-500.0,0.00033698,14]
[332651936,1721405479750,-2246.16,0.00033698,14]
[332651937,1721405479759,-500.0,0.00033698,14]
[332651938,1721405479769,-8229.51,0.00033698,14]
[332651939,1721405479778,-4655.89,0.00033698,14]
[332651940,1721405479787,-1033.47,0.00033698,14]
[332651941,1721405479796,-1465.61,0.00033698,14]
[332651942,1721405479806,-1464.16,0.00033698,14]
[332651943,1721405479815,-4196.57,0.00033698,14]
[332651944,1721405479825,-5345.19,0.00033698,14]
[332651945,1721405479834,-1910.19,0.00033698,14]
[332651946,1721405479843,-1194.16,0.00033698,14]
[332651947,1721405479853,-500.0,0.00033698,14]
[332651948,1721405479863,-573.17,0.00033698,14]
[332651949,1721405479872,-500.0,0.00033698,14]
[332651950,1721405479881,-10933.25,0.00033698,14]
[332651951,1721405479893,-500.0,0.00033698,14]
[332651952,1721405479903,-1409.33,0.00033698,14]
[332651953,1721405479912,-500.0,0.00033698,14]
[332651954,1721405479921,-1154.96,0.00033698,14]
[332651955,1721405479931,-3354.51,0.00033698,14]
[332651956,1721405479940,-3674.93,0.00033698,14]
[332651957,1721405479951,-4811.1,0.00033698,14]
[332651958,1721405479961,-1405.5,0.00033698,14]
[332651959,1721405479970,-735.83,0.00033698,14]
[332651960,1721405479980,-1524.71,0.00033698,14]
[332651961,1721405479990,-1682.97,0.00033698,14]
[332651962,1721405479999,-3837.86,0.00033698,14]
[332651963,1721405480009,-500.0,0.00033698,14]
[332651964,1721405480019,-5839.3,0.00033698,14]
[332651965,1721405480030,-500.0,0.00033698,14]
[332651966,1721405480040,-1215.13,0.00033698,14]
[332651967,1721405480050,-500.0,0.00033698,14]
[332651968,1721405480060,-5878.24,0.00033698,14]
[332651969,1721405480070,-500.0,0.00033698,14]
[332651970,1721405480080,-500.0,0.00033698,14]
[332651971,1721405480090,-500.0,0.00033698,14]
[332651972,1721405480100,-884.11,0.00033698,14]
[332651973,1721405480109,-500.0,0.00033698,14]
[332651974,1721405480118,-1263.94,0.00033698,14]
[332651975,1721405480128,-500.0,0.00033698,14]
[332651976,1721405480138,-500.0,0.00033698,14]
[332651977,1721405480147,-500.0,0.00033698,14]
[332651978,1721405480157,-1861.13,0.00033698,14]
[332651979,1721405480166,-500.0,0.00033698,14]
[332651980,1721405480176,-4030.15,0.00033698,14]
[332651981,1721405480188,-575.36,0.00033698,14]
[332651982,1721405480198,-1017.03,0.00033698,14]
[332651983,1721405480208,-500.0,0.00033698,14]
[332651984,1721405480219,-500.0,0.00033698,14]
[332651985,1721405480230,-1691.71,0.00033698,14]
[332651986,1721405480240,-500.0,0.00033698,14]
[332651987,1721405480252,-500.0,0.00033698,14]
[332651988,1721405480262,-1374.24,0.00033698,14]
[332651989,1721405480273,-768.4,0.00033698,14]
[332651990,1721405480283,-500.0,0.00033698,14]
[332651991,1721405480296,-1697.84,0.00033698,14]
[332651992,1721405480308,-2559.7,0.00033698,14]
[332651993,1721405480320,-344.71056713,0.00033698,14]
[332651994,1721405480335,-500.0,0.00033698,14]
[332651995,1721405480345,-500.0,0.00033698,14]